Cogmind - Beta 16.1 @@@ ROGUE MODE // 2026.03.07 @ 21:09:31 Player: mournfully Result: Core destroyed Performance ------------- Evolutions (0) 0 Regions Visited (1) 200 Robots Destroyed (22) 110 Value Destroyed (325) 325 Prototype IDs (3) 60 Alien Tech Used (0) 0 Bonus (0) 0 TOTAL SCORE: 695 Bonus ------- None Cogmind --------- Core Integrity 0/250 Matter 366/500 Energy 44/250 System Corruption 0% Temperature Critical (540) Movement Treading (160) Location -10/Materials Parts ------- > --- POWER (1) -------- Ion Engine > --- PROPULSION (2) --- Improved Treads Improved Treads > --- UTILITY (2) ------ Large Storage Unit High-capacity Matter Pod > --- WEAPON (2) ------- Beam Cannon Flail > --- INVENTORY (15) --- Improved Treads Hover Unit Hover Unit Huge Storage Unit High-capacity Matter Pod (0) High-capacity Matter Pod (0) Seismic Detector Targeting Computer Targeting Computer ECM Suite Utility Shielding Hacking Suite Particle Gun Grenade Launcher Peak State ------------ > --- POWER ------------ Ion Engine > --- PROPULSION ------- Improved Treads Improved Treads > --- UTILITY ---------- Small Storage Unit Seismic Detector > --- WEAPON ----------- Particle Gun Particle Gun > --- INVENTORY -------- Ion Engine Improved Treads Improved Treads Wheel Assault Rifle Assault Rifle Light Assault Rifle Flail [Rating: 12] Favorites ----------- Power Ion Engine Engine Ion Engine Propulsion Improved Treads Treads Improved Treads Wheel Compact Wheel Utility Seismic Detector Device Seismic Detector Storage Large Storage Unit Weapon Assault Rifle Energy Gun Particle Gun Energy Cannon Beam Cannon Ballistic Gun Assault Rifle Impact Weapon Flail Build | -11 -10 ------- Run | Yrd Mat Slots Evolved . | . . Power . | . . Propulsion . | . . Utility . | . . Weapon . | . . Parts Attached 24 | 10 14 Power 2 | 1 1 Engine 2 | 1 1 Core . | . . Reactor . | . . Propulsion 6 | 3 3 Treads 3 | . 3 Leg . | . . Wheel 3 | 3 . Hover . | . . Flight . | . . Utility 8 | 3 5 Device 1 | 1 . Storage 7 | 2 5 Processor . | . . Hackware . | . . Protection . | . . Artifact . | . . Weapon 8 | 3 5 Energy Gun 3 | . 3 Energy Cannon 1 | . 1 Ballistic Gun 3 | 3 . Ballistic Cannon . | . . Launcher . | . . Special Weapon . | . . Impact Weapon 1 | . 1 Slashing Weapon . | . . Piercing Weapon . | . . Special Melee Weapon . | . . Unidentified Prototypes . | . . Parts Lost 4 | . 4 Power 1 | . 1 Propulsion 1 | . 1 Utility . | . . Weapon 2 | . 2 Highest Loss Streak 3 | . 3 To Critical Strikes . | . . Average Backups 10 | 3 11 Power . | . . Propulsion 3 | 1 3 Utility 3 | . 3 Weapon 2 | 1 2 Tool/Special . | . . Unused Backups 17 | . 17 Power . | . . Propulsion 8 | . 8 Utility 6 | . 6 Weapon 3 | . 3 Tool/Special . | . . Average Slot Usage (%) 99 | . 99 Engine 13 | . 13 Treads 27 | . 27 Device 9 | . 9 Storage 18 | . 18 Energy Gun 7 | . 7 Energy Cannon 7 | . 7 Ballistic Gun 12 | . 12 Peak Build Rating 12 | 7 12 Average Rating 10 | 5 10 On Entrance 3 | . 7 Avg Prop Armor Cover (%) . | . . Naked Turns . | . . Heaviest Build 92 | 15 92 Greatest Support 46 | 32 46 Greatest Overweight (x) 2 | 2 1 Average Overweight (x) . | . . Largest Inventory Capacity 25 | 8 25 Average Capacity 17 | 7 17 Most Carried 15 | 6 15 Average Carried 10 | 3 11 Final Capacity 15 | 8 15 Final Carried 14 | 6 14 Class Distribution -------------------- 100% | Mutant Dominant Class ---------------- Mutant | -10/Materials Resources | -11 -10 ----------- Run | Yrd Mat Matter Collected 960 | 312 648 Remotely . | . . Salvage Created 884 | 101 783 Parts 47 | 6 41 Haulers Intercepted 2 | . 2 Recyclers Shooed 7 | . 7 Parts Field Recycled . | . . Retrieved Matter . | . . Parts Self-Destructed . | . . Prevented . | . . Parts Restored . | . . Kills | -11 -10 ------- Run | Yrd Mat Combat Hostiles Destroyed 7 | . 7 Guns 6 | . 6 Cannons 1 | . 1 Classes Destroyed 7 | 2 5 Tunneler 1 | 1 . Hauler 2 | . 2 Recycler 7 | 1 6 Operator 2 | . 2 Watcher 3 | . 3 Swarmer 3 | . 3 Grunt 4 | . 4 Best Kill Streak 3 | 2 3 Combat Bots Only 3 | . 3 Max Kills in Single Turn 1 | 1 1 Gunslinging . | . . Exploded . | . . Melee . | . . Uniques/NPCs Destroyed . | . . Combat | -11 -10 -------- Run | Yrd Mat Hostile Shots Fired 90 | . 90 Missed 14 | . 14 Hits 76 | . 76 Projectile 76 | . 76 Critical Strikes 4 | . 4 Damage Taken 996 | . 996 Core 264 | . 264 Absorbed by Shields . | . . Core Remaining (%) 100 | 100 . Volleys Fired 94 | 3 91 Largest 2 | 2 2 Hottest 130 | 40 130 Shots Fired 178 | 6 172 Gun 142 | 6 136 Cannon 36 | . 36 Launcher . | . . Special . | . . Kinetic 107 | 6 101 Thermal 71 | . 71 Explosive . | . . Electromagnetic . | . . Robot Hit Streak 10 | 3 10 Robot Miss Streak 6 | 1 6 Penetration Max . | . . Secondary Targets 1 | . 1 Max Gunslinging Chain 1 | . 1 Shots Hit Robots 111 | 4 107 Core Hits 35 | 3 32 Critical Kills . | . . Critical Parts Destroyed 1 | . 1 Critical Strikes 3 | . 3 Burn 2 | . 2 Destroy 1 | . 1 Melee Attacks 2 | . 2 Impact 2 | . 2 Slashing . | . . Piercing . | . . Sneak Attacks . | . . Combat Hostiles . | . . Follow-up Attacks . | . . Damage Inflicted 1563 | 46 1517 Guns 1184 | 46 1138 Cannons 379 | . 379 Explosions . | . . Melee . | . . Ramming . | . . Kinetic 851 | 46 805 Thermal 712 | . 712 Explosive . | . . Electromagnetic . | . . Impact . | . . Slashing . | . . Piercing . | . . Highest Corruption . | . . Average Corruption . | . . Corruption Purged . | . . Corruption Blocked . | . . Overload Shots . | . . Overflow Damage . | . . Projectiles . | . . Explosions . | . . Melee . | . . Knockbacks . | . . Impact . | . . Kinetic . | . . Secondary . | . . Self-Inflicted Damage . | . . Shots . | . . Rammed . | . . Targets Rammed . | . . Kicked . | . . Crushed . | . . Highest Temperature 543 | . 543 Average Temperature 141 | . 141 Received Heat Transfer 534 | . 534 Effects 6 | . 6 Shutdowns 1 | . 1 Energy Bleed 2 | . 2 Matter Decay 1 | . 1 Damage (core) 2 | . 2 Siege Activations . | . . Martial Activations . | . . Shielding Activations . | . . Robots Disrupted . | . . Combat Hostiles . | . . Robots Corrupted . | . . Combat Hostiles . | . . Parts Fried . | . . Impact Corruptions . | . . Robots Melted . | . . Combat Hostiles . | . . Parts Melted 3 | . 3 Heat Transferred 1739 | . 1739 Parts Sabotaged . | . . Parts Stolen . | . . Parts Stripped . | . . Power Chain Reactions . | . . Alert | -11 -10 ------- Run | Yrd Mat Maximum Alert Level . | . . Low Security (%) 100 | 100 100 Level 1 . | . . Level 2 . | . . Level 3 . | . . Level 4 . | . . Level 5 . | . . High Security . | . . Max Security . | . . Peak Influence 71 | 5 71 Initial . | . . Average 11 | . 11 Influence Increases 299 | 10 289 Destroy 0b10 Robot/C 140 | . 140 Destroy 0b10 Robot/NC 75 | 10 65 Destroy Leader 40 | . 40 Successful Hack 40 | . 40 Destroy Structure 4 | . 4 Influence Decreases 299 | 10 289 Time Decay 269 | 10 259 Lost Part 30 | . 30 Squads Dispatched 1 | . 1 Investigation . | . . Extermination . | . . Reinforcement 1 | . 1 Assault . | . . Garrison . | . . Intercept . | . . Searches Triggered . | . . Construction Impeded . | . . Haulers Reinforced . | . . Active Scanning Responses . | . . Cargo Convoy Interrupts . | . . Stealth | -11 -10 --------- Run | Yrd Mat Distress Signals . | . . Communications Jammed . | . . Distress Signals . | . . Times Spotted 19 | . 19 Peak Tracking Total 3 | . 3 Tactical Retreats . | . . Traps | -11 -10 ------- Run | Yrd Mat Traps Triggered . | . . Indirectly . | . . Trap Hack Attempts . | . . Triggered . | . . Disarmed . | . . Reprogrammed . | . . Reused . | . . Traps Extracted . | . . Installed . | . . Triggered . | . . Machines | -11 -10 ---------- Run | Yrd Mat Machines Disabled . | . . Max in Single Turn . | . . Machines Repaired . | . . Machines Dismantled . | . . Machines Sabotaged . | . . Overloaded Fab Kills . | . . Hacking | -11 -10 --------- Run | Yrd Mat Machines Accessed 5 | . 5 Terminals 5 | . 5 Fabricators . | . . Repair Stations . | . . Recycling Units . | . . Scanalyzers . | . . Garrison Access . | . . Total Hacks 17 | . 17 Successful 7 | . 7 Failed 10 | . 10 Catastrophic 4 | . 4 Database Lockouts . | . . Manual 12 | . 12 Terminals 17 | . 17 Fabricators . | . . Repair Stations . | . . Recycling Units . | . . Scanalyzers . | . . Garrison Access . | . . Terminal Hacks 6 | . 6 Robot Analysis 1 | . 1 Prototype ID Bank 1 | . 1 Branch Access Points 1 | . 1 Recall Reinforcements 1 | . 1 Hauler Manifests 1 | . 1 Registered Components 1 | . 1 Fabricator Hacks . | . . Repair Station Hacks . | . . Recycling Unit Hacks . | . . Scanalyzer . | . . Garrison Access Hacks . | . . Unauthorized Hacks 1 | . 1 Terminals 1 | . 1 Botnet 1 | . 1 Fabricators . | . . Repair Stations . | . . Recycling Units . | . . Scanalyzers . | . . Garrison Access . | . . Data Cores Recovered 1 | . 1 Used . | . . Hacking Detections 6 | . 6 Full Trace Events 1 | . 1 Feedback Events . | . . Feedback Blocked . | . . Robot Schematics Acquired . | . . Robots Built . | . . Authchips . | . . Time . | . . Total Robot Build Rating . | . . Part Schematics Acquired . | . . Parts Built . | . . Authchips . | . . Time . | . . Total Part Build Rating . | . . Part Studies Acquired . | . . Parts Repaired . | . . Time . | . . Parts Recycled . | . . Recycled Matter . | . . Retrieved Matter . | . . Retrieved Components . | . . Parts Scanalyzed . | . . Part Schematics Acquired . | . . Parts Damaged . | . . Bothacking | -11 -10 ------------ Run | Yrd Mat Used RIF Installer . | . . Robots Hacked . | . . Non-combat . | . . Combat . | . . Robot Hacks Applied . | . . Relay Couplers Released . | . . Fabnet Peak Effective % . | . . Robots Rewired . | . . Allies Hacked . | . . Hacks Repelled . | . . Allies | -11 -10 -------- Run | Yrd Mat Total Allies . | . . Largest Group . | . . Highest-Rated Group . | . . Highest-Rated Ally . | . . Total Orders . | . . Ally Attacks . | . . Total Damage . | . . Kills . | . . Allies Corrupted . | . . Allies Melted . | . . Intel | -11 -10 ------- Run | Yrd Mat Active Infowar (turns) 1188 | 41 1147 Seismic 1188 | 41 1147 Robot Analysis Total 1 | . 1 Derelict Logs Recovered . | . . Drone Launches . | . . Drone Recoveries . | . . Exploration | -11 -10 ------------- Run | Yrd Mat Turns Passed 1733 | 90 1643 Spaces Moved 789 | 67 722 Core 11 | 11 . Treads 712 | . 712 Legs . | . . Wheels 66 | 56 10 Hover . | . . Flight . | . . Fastest Speed 50 | 50 100 Average Speed 171 | 90 179 Slowest Speed 240 | 150 240 Overloaded Moves . | . . Propulsion Burnouts . | . . Robots Hopped . | . . Potential Cave-ins . | . . Cave-ins Triggered . | . . Exploration Rate (%) 47 | 5 90 Regions Visited 1 Branch Regions . Pre-discovered Areas . | . . Known Exits Taken . | . . Unknown Exits Taken 1 | 1 . Scrap Searched . | . . Spaces Dug 2 | . 2 Terrain Destroyed 2 | . 2 Melee 2 | . 2 Projectile . | . . AOE . | . . Terrain Rammed . | . . Walls Destroyed . | . . Machines Disabled . | . . Actions | -11 -10 --------- Run | Yrd Mat Total 985 | 87 898 Wait 17 | . 17 Move 788 | 66 722 Hop . | . . Pick Up 27 | 6 21 Fast Attach 12 | 8 4 Attach 8 | . 8 Detach 6 | . 6 Swap 14 | 2 12 Drop 17 | 2 15 Fire 94 | 3 91 Melee 2 | . 2 Ram . | . . Kick . | . . Crush . | . . Escape Stasis . | . . Rewire . | . . Trap . | . . Miscellaneous . | . . Route ------- -11/Scrapyard -10/Materials (discovered 3 exits: [*Mat x2] / *Min) History --------- Turn | Location | Event 10 | -11/Scrapyard | Discovered new exit (range 16) 91 | -11/Scrapyard | Entered Materials 310 | -10/Materials | Build established: Mutant 653 | -10/Materials | Discovered new exit (range 9) 782 | -10/Materials | Discovered new exit (range 16) 916 | -10/Materials | Lost 3 parts (1n2w) 1102 | -10/Materials | Discovered new exit (range 4) 1528 | -10/Materials | Identified exit to Mines 1709 | -10/Materials | Core integrity fell below 50% 1732 | -10/Materials | Core integrity fell below 20% 1735 | -10/Materials | Core destroyed Last Messages --------------- 01699_ Critical hit (Burn: +37). 01706_ Ion Engine destroyed. 01710_ Overheating: Energy bleed (-9). 01712_ Overheating: Energy bleed (-10). 01713_ K-01 Serf collects debris. 01715_ G-47 Trooper heat damages Lgt. Nuclear Core, Imp. Heat Sink. 01716_ G-47 Trooper overheating. 01717_ K-01 Serf collects debris. 01720_ G-47 Trooper suffers critical hit (Burn). 01721_ G-47 Trooper overheating. 01722_ G-47 Trooper heat damages Aluminum Leg. 01722_ G-47 Trooper overheating. [Achievement: Well Done] 01725_ G-47 Trooper overheating. 01726_ Power failure, Ion Engine shutdown. 01726_ G-47 Trooper overheating. 01732_ Overheating: Core damaged (-42). 01733_ Overheating: Matter decay (-59). 01735_ Overheating: Core damaged (-40). Map ----- +----------------------------------------------------+ | ??????????# #????# #??# | | ??????????# ##+####### ## #???## #### | | ??????????####### ????## ### ##### # | | ????????????????# """ #???# #?# #* | | ????????????????# """ #???# #?# + | | ????????????????# """ #???# #?# # | | ????????????????# ##### ########### # | | ????????????????# | ##""" # #### ### | | ????????????????# ##" # # ##### | | ????????????????######?#"| #!! # | | ???????????????????????#"" > #! + ##### | | ???????????????????????#"| # # #???? | | ???????????????????????#" # # #???? | | ???????????????????????#""" # ## ###### | | ???????????????????????#### ## ## # | | ??????????????????????????# ## ## # | | ??????????????????????????# ## ## + ! | | ??????????????????????????# ## ## # | | ?????????????????????????## ########### ###### | | ????????????############## #???????## ##???? | | ????? ######### ##### | | ????????????######### | | ?????????????????#### *=! | | ??????????########T## ## !%! % | | ??????????# ^ ###+############ ##### | | ??????????# ! g@ #????## ### | | ??????????# ^!|| # ""T"" #?????# #?# | | ??????????# !!^ # """"" #?????# #?# | | ??????????# !!|^ # #?????# #?# | | ??????????## ###########?????# #?# | | ???????????# #????############ #?# | | ???????????# ! ###### ## ### | | ???????????# + """ # ###+# | | ??????????## ####T#T######## """ R" # | | ??????????# #######??????# """ """ + | | ??????????# ######### """ # | | ??????????# + # ##### | | ??????????# ######### ###+####### | | ??????????# ######???????# # # | | ???????######+######?????????########### T # | | ???????# #???????????????????# # | | ???????# #???????????????????# """ # | | ???????# #???????????????????# """"" # | | ???????# #???????????????????# """"" # | | ???????# #???????????????????# """"" # | | ???????#! #???????????????????# """ # | | ???????# #???????????????????###??###### | | ???????#############?????????????????????????????? | | | | | +----------------------------------------------------+ Best States ------------- Heat Dissipation 25 Energy Generation 10 Energy Capacity 250 Matter Stores 445 Matter Capacity 500 Sight Range 16 Terrain Scan Density 10 Evasion (%) 50 Recoil Reduction 2 Item Schematics ----------------- None Robot Schematics ------------------ None Fabricated ------------ Nothing Repaired ---------- Nothing Studied --------- None Alien Tech Used ----------------- None Achievements -------------- DATA ERROR: Steam Global Achievement% Organ Harvest There's More Where That Came From Well Done Challenges ------------ None Game ------ Seed SignalVisualPenetrator Manual? 0 Play Time 00:27:35 Cumulative 73.7 hours Start 2026.03.07 @ 20:40:23 End 2026.03.07 @ 21:09:31 Sessions 1 Manual Loads 0 Difficulty Rogue Special Mode None Game No. 35 Rogue 34 Adventurer 1 Explorer 0 Win Type - Total 1 Types 1/0/0/0/0/0/0/0/0/0 Lore% 12 Gallery% 29 Achievement% 17 Wizard Run 0 Options --------- Layout 1 ASCII 0 Keyboard 0 Movement Arrows Keybinds 0 Fullscreen 1 Font 24/Smallcaps Map View 50x35 Zoom Use 0% Tactical HUD 1 Map Filters NONE Filters NONE Steam 1 RUN: 8a9ed933-a600-4eb7-aaae-9808103c2779